fUST/lending_fUST_20240410
["ID","MTS","AMOUNT","RATE_DAILY","PERIOD"]
[322058387,1712734232651,-500.0,0.00024376,2]
[322058388,1712734232661,-500.0,0.00024376,2]
[322058389,1712734232670,-546.66,0.00024376,2]
[322058390,1712734232680,-2434.14,0.00024376,2]
[322058391,1712734232691,-500.0,0.00024376,2]
[322058392,1712734232701,-500.0,0.00024377,2]
[322058393,1712734232712,-2351.87,0.00024377,2]
[322058394,1712734232722,-3355.513882,0.00024377,2]
[322058395,1712734232733,-3355.513882,0.00024377,2]
[322058396,1712734232743,-151.0,0.00024377,2]
[322058397,1712734232754,-154.98315123,0.00024382,2]
[322058398,1712734232765,-151.0,0.00024398,2]
[322058399,1712734232776,-1553.00181421,0.00024481,2]
[322058400,1712734232788,-315.926741,0.0002455,2]
[322058401,1712734232798,-315.926741,0.0002455,2]
[322058402,1712734232809,-151.0,0.0002455,2]
[322058403,1712734232819,-10000.0,0.00024644,2]
[322058404,1712734232828,-151.0,0.00024644,2]
[322058405,1712734232838,-151.0,0.00024644,2]
[322058406,1712734232847,-448.94,0.00024649,2]
[322058407,1712734232856,-544.97,0.00024649,2]
[322058408,1712734232866,-500.0,0.00024649,2]
[322058409,1712734232875,-500.0,0.00024649,2]
[322058410,1712734232884,-500.0,0.00024649,2]
[322058411,1712734232894,-717.63,0.00024649,2]
[322058412,1712734232903,-577.44,0.00024649,2]
[322058413,1712734232912,-723.57,0.00024649,2]
[322058414,1712734232921,-506.2,0.00024649,2]
[322058415,1712734232931,-500.0,0.00024649,2]
[322058416,1712734232941,-500.0,0.0002465,2]
[322058417,1712734232950,-500.0,0.0002465,2]
[322058418,1712734232960,-546.66,0.0002465,2]
[322058419,1712734232970,-2434.14,0.0002465,2]
[322058420,1712734232981,-500.0,0.0002465,2]
[322058421,1712734232991,-500.0,0.00024651,2]
[322058422,1712734233003,-2351.87,0.00024651,2]
[322058423,1712734233013,-380.0,0.00024658,2]
[322058424,1712734233023,-154.98315123,0.00024767,2]
[322058425,1712734233033,-978.45461094,0.00024767,2]
[322058461,1712734238271,-250.0,0.00024767,2]
[322058463,1712734238283,-2127.05927106,0.00024767,2]
[322058465,1712734238292,-3355.513882,0.00024767,2]
[322058466,1712734238302,-151.0,0.00024767,2]
[322058467,1712734238311,-19966.53882765,0.0002488,2]
[322058468,1712734238321,-151.0,0.00024923,2]
[322058469,1712734238330,-544.97,0.00024923,2]
[322058470,1712734238340,-500.0,0.00024923,2]
[322058471,1712734238350,-426.01192026,0.00024923,2]
[322058472,1712734238364,-315.926741,0.00024923,2]
[322058473,1712734238373,-500.0,0.00024923,2]
[322058474,1712734238383,-315.926741,0.00024923,2]
[322058475,1712734238392,-151.0,0.00024923,2]
[322058476,1712734238402,-717.63,0.00024923,2]
[322058477,1712734238412,-577.44,0.00024923,2]
[322058478,1712734238423,-723.57,0.00024923,2]
[322058479,1712734238433,-506.2,0.00024923,2]
[322058480,1712734238442,-500.0,0.00024923,2]
[322058481,1712734238452,-500.0,0.00024924,2]
[322058482,1712734238462,-500.0,0.00024924,2]
[322058483,1712734238471,-546.66,0.00024924,2]
[322058485,1712734238480,-2434.14,0.00024924,2]
[322058487,1712734238490,-500.0,0.00024924,2]
[322058489,1712734238499,-151.0,0.00024925,2]
[322058491,1712734238508,-500.0,0.00024925,2]
[322058493,1712734238517,-2351.87,0.00024925,2]
[322058495,1712734238526,-6002.86962,0.00025,2]
[322058497,1712734238535,-1012.68584203,0.00025,2]
[322058499,1712734238544,-151.0,0.00025,2]
[322058501,1712734238553,-587.0,0.00025029,2]
[322058503,1712734238562,-1553.00181421,0.00025097,2]
[322058505,1712734238572,-154.98315123,0.00025152,2]
[322058507,1712734238581,-487.52871714,0.00025171,2]
[322058509,1712734238590,-8139.51448875,0.00025172,2]
[322058511,1712734238599,-151.0,0.00025172,2]
[322058513,1712734238609,-315.926741,0.00025172,2]
[322058515,1712734238618,-315.926741,0.00025172,2]
[322058517,1712734238627,-242.992108,0.00025172,2]
[322058519,1712734238636,-3355.513882,0.00025172,2]
[322058521,1712734238645,-3355.513882,0.00025172,2]
[322058523,1712734238655,-267.369852,0.00025172,2]
[322058525,1712734238664,-500.0,0.00025197,2]
[322058527,1712734238673,-220.22760662,0.00025197,2]
[322058529,1712734238682,-544.97,0.00025197,2]
[322058531,1712734238691,-500.0,0.00025197,2]
[322058534,1712734238702,-500.0,0.00025197,2]
[322058535,1712734238712,-717.63,0.00025197,2]
[322058537,1712734238722,-577.44,0.00025197,2]
[322058540,1712734238733,-723.57,0.00025197,2]
[322058541,1712734238742,-506.2,0.00025197,2]
[322058543,1712734238751,-500.0,0.00025197,2]
[322058545,1712734238760,-500.0,0.00025198,2]
[322058547,1712734238770,-500.0,0.00025198,2]
[322058549,1712734238780,-546.66,0.00025198,2]
[322058552,1712734238790,-2434.14,0.00025198,2]
[322058554,1712734238799,-546.97200429,0.00025198,2]
[322058555,1712734238808,-151.0,0.00025199,2]
[322058557,1712734238817,-500.0,0.00025199,2]
[322058559,1712734238827,-2351.87,0.00025199,2]
[322058561,1712734238836,-221.609,0.00025203,2]
[322058564,1712734238846,-621.28268984,0.00025412,2]
[322058566,1712734238857,-544.97,0.00025471,2]
[322058568,1712734238867,-500.0,0.00025471,2]
[322058570,1712734238877,-500.0,0.00025471,2]
[322058572,1712734238886,-717.63,0.00025471,2]
[322058574,1712734238895,-577.44,0.00025471,2]
[322058576,1712734238907,-723.57,0.00025471,2]
[322058578,1712734238915,-506.2,0.00025471,2]
[322058580,1712734238925,-500.0,0.00025471,2]
[322058582,1712734238934,-500.0,0.00025472,2]
[322058584,1712734238943,-500.0,0.00025472,2]
[322058586,1712734238951,-546.66,0.00025472,2]
[322058588,1712734238960,-151.0,0.00025472,2]
[322058590,1712734238969,-2434.14,0.00025472,2]
[322058591,1712734238979,-500.0,0.00025473,2]
[322058593,1712734238988,-315.926741,0.00025473,2]
[322058596,1712734238997,-2351.87,0.00025473,2]
[322058598,1712734239008,-315.926741,0.00025473,2]
[322058600,1712734239017,-3355.513882,0.00025473,2]
[322058601,1712734239025,-3355.513882,0.00025473,2]
[322058604,1712734239035,-2299.9869379,0.000255,4]
[322058605,1712734239044,-151.0,0.000255,2]
[322058607,1712734239053,-405.4836204,0.00025501,2]
[322058609,1712734239062,-154.98315123,0.00025537,2]
[322058611,1712734239071,-587.0,0.00025603,2]
[322058613,1712734239081,-544.97,0.00025745,2]
[322058616,1712734239090,-500.0,0.00025745,2]
[322058618,1712734239101,-500.0,0.00025745,2]
[322058620,1712734239110,-717.63,0.00025745,2]
[322058622,1712734239120,-577.44,0.00025745,2]
[322058624,1712734239129,-723.57,0.00025745,2]
[322058626,1712734239138,-506.2,0.00025745,2]
[322058628,1712734239147,-500.0,0.00025745,2]
[322058630,1712734239157,-500.0,0.00025746,2]
[322058632,1712734239167,-500.0,0.00025746,2]
[322058634,1712734239175,-546.66,0.00025746,2]
[322058636,1712734239184,-2434.14,0.00025746,2]
[322058638,1712734239193,-151.0,0.00025747,2]
[322058640,1712734239202,-500.0,0.00025747,2]
[322058642,1712734239212,-2351.87,0.00025747,2]
[322058644,1712734239221,-668.51092387,0.00025761,2]
[322058646,1712734239230,-154.98315123,0.00025922,2]
[322058648,1712734239239,-40189.0,0.00026,2]
[322058649,1712734239248,-500.0,0.00026,2]
[322058651,1712734239257,-153.038156,0.00026,2]
[322058654,1712734239267,-151.0,0.00026,2]
[322058655,1712734239276,-315.926741,0.00026,2]
[322058657,1712734239285,-315.926746,0.00026,2]
[322058659,1712734239294,-151.0,0.00026,2]
[322058662,1712734239303,-3355.513882,0.00026,2]
[322058664,1712734239313,-3355.513883,0.00026,2]
[322058665,1712734239322,-544.97,0.00026019,2]
[322058668,1712734239332,-391.14,0.00026019,2]
[322058670,1712734239341,-500.0,0.00026019,2]
[322058672,1712734239351,-717.63,0.00026019,2]
[322058673,1712734239363,-577.44,0.00026019,2]
[322058675,1712734239373,-723.57,0.00026019,2]
[322058678,1712734239383,-506.2,0.00026019,2]
[322058680,1712734239393,-500.0,0.00026019,2]
[322058682,1712734239402,-500.0,0.0002602,2]
[322058684,1712734239412,-500.0,0.0002602,2]
[322058686,1712734239421,-546.66,0.0002602,2]
[322058688,1712734239431,-2434.14,0.0002602,2]
[322058690,1712734239440,-500.0,0.00026021,2]
[322058691,1712734239450,-2351.87,0.00026021,2]
[322058694,1712734239460,-260.88742255,0.00026035,2]
[322058695,1712734239471,-156.53326933,0.00026172,2]
[322058697,1712734239482,-342.35654878,0.0002619,2]
[322058699,1712734239491,-153.0,0.00026192,2]
[322058701,1712734239500,-153.0,0.00026192,2]
[322058703,1712734239510,-153.0,0.00026192,2]
[322058705,1712734239519,-153.0,0.00026192,2]
[322058707,1712734239528,-404.539752,0.00026192,2]
[322058709,1712734239537,-153.0,0.00026192,2]
[322058711,1712734239546,-153.0,0.00026192,2]
[322058713,1712734239554,-153.0,0.00026192,2]
[322058715,1712734239563,-153.0,0.00026192,2]
[322058717,1712734239572,-306.0,0.00026192,2]
[322058719,1712734239581,-153.0,0.00026192,2]
[322058721,1712734239590,-1285.72919431,0.00026192,60]
[322058723,1712734239599,-544.97,0.00026293,2]
[322058725,1712734239608,-500.0,0.00026293,2]
[322058727,1712734239618,-717.63,0.00026293,2]
[322058729,1712734239627,-577.44,0.00026293,2]
[322058732,1712734239637,-723.57,0.00026293,2]
[322058733,1712734239646,-506.2,0.00026293,2]
[322058735,1712734239655,-500.0,0.00026293,2]
[322058737,1712734239664,-305.41278701,0.00026294,2]
[322058739,1712734239673,-167.3382165,0.00026294,2]
[322058741,1712734239682,-151.0,0.00026294,2]
[322058743,1712734239691,-500.0,0.00026294,2]
[322058745,1712734239700,-529.6491511,0.00026294,2]
[322058747,1712734239711,-546.66,0.00026294,2]
[322058749,1712734239721,-2434.14,0.00026294,2]
[322058751,1712734239731,-500.0,0.00026295,2]
[322058753,1712734239740,-2351.87,0.00026295,2]
[322058755,1712734239749,-306.7307567,0.00026521,2]
[322058757,1712734239758,-155.88359555,0.00026565,2]
[322058759,1712734239766,-156.6305307,0.00026566,2]
[322058761,1712734239776,-276.5797893,0.00026566,2]
[322058763,1712734239787,-529.93446633,0.00026566,2]
[322058765,1712734239796,-155.59169332,0.00026566,2]
[322058767,1712734239806,-173.67326272,0.00026566,2]
[322058769,1712734239815,-279.24487564,0.00026566,2]
[322058771,1712734239824,-548.90126628,0.00026566,2]
[322058773,1712734239833,-544.97,0.00026567,2]
[322058775,1712734239841,-500.0,0.00026567,2]
[322058777,1712734239851,-717.63,0.00026567,2]
[322058779,1712734239861,-577.44,0.00026567,2]
[322058781,1712734239870,-723.57,0.00026567,2]
[322058783,1712734239879,-506.2,0.00026567,2]
[322058785,1712734239889,-500.0,0.00026567,2]
[322058787,1712734239898,-500.0,0.00026568,2]
[322058789,1712734239907,-546.66,0.00026568,2]
[322058791,1712734239916,-2434.14,0.00026568,2]
[322058793,1712734239925,-500.0,0.00026569,2]
[322058795,1712734239934,-2351.87,0.00026569,2]
[322058797,1712734239943,-281.44850236,0.0002657,2]
[322058799,1712734239952,-4581.51209606,0.0002657,2]
[322058801,1712734239961,-259.9257713,0.00026604,2]
[322058803,1712734239970,-620.06413449,0.00026682,2]
[322058805,1712734239979,-293.77904916,0.00026742,2]
[322058807,1712734239989,-544.97,0.00026841,2]
[322058809,1712734239998,-500.0,0.00026841,2]
[322058811,1712734240007,-717.63,0.00026841,2]
[322058813,1712734240016,-577.44,0.00026841,2]
[322058815,1712734240025,-723.57,0.00026841,2]
[322058817,1712734240034,-506.2,0.00026841,2]
[322058819,1712734240043,-500.0,0.00026841,2]
[322058821,1712734240052,-151.0,0.00026842,2]
[322058823,1712734240061,-348.55910783,0.00026842,2]
[322058825,1712734240069,-546.66,0.00026842,2]
[322058827,1712734240079,-2434.14,0.00026842,2]
[322058829,1712734240088,-500.0,0.00026843,2]
[322058831,1712734240097,-2351.87,0.00026843,2]
[322058833,1712734240107,-154.95351395,0.00027,2]
[322058835,1712734240116,-500.0,0.00027,2]
[322058837,1712734240125,-544.97,0.00027115,2]
[322058839,1712734240135,-500.0,0.00027115,2]
[322058841,1712734240144,-717.63,0.00027115,2]
[322058843,1712734240152,-577.44,0.00027115,2]
[322058845,1712734240161,-723.57,0.00027115,2]
[322058847,1712734240170,-506.2,0.00027115,2]
[322058849,1712734240179,-612.48,0.00027115,2]
[322058851,1712734240189,-500.0,0.00027116,2]
[322058853,1712734240197,-546.66,0.00027116,2]
[322058855,1712734240207,-2351.87,0.00027116,2]
[322058857,1712734240216,-2434.14,0.00027116,2]
[322058859,1712734240225,-1398.93299604,0.00027119,2]
[322058861,1712734240235,-1227.53516352,0.00027121,2]
[322058863,1712734240243,-157.2962719,0.00027122,2]
[322058865,1712734240252,-233.02119329,0.00027223,4]
[322058867,1712734240261,-232.59063765,0.00027388,2]
[322058869,1712734240270,-544.97,0.00027389,2]
[322058871,1712734240279,-500.0,0.00027389,2]
[322058873,1712734240288,-717.63,0.00027389,2]
[322058875,1712734240297,-577.44,0.00027389,2]
[322058876,1712734240306,-723.57,0.00027389,2]
[322058878,1712734240314,-506.2,0.00027389,2]
[322058880,1712734240324,-500.0,0.0002739,2]
[322058882,1712734240333,-546.66,0.0002739,2]
[322058885,1712734240342,-499.13431164,0.0002739,2]
[322059115,1712734243454,-500.0,0.00022183,2]
[322059116,1712734243463,-355.0,0.00022183,2]
[322059292,1712734259871,7998.31327387,0.00021001,2]
[322059293,1712734260806,667.03,0.00021001,2]
[322059294,1712734291546,160.63706846,0.00021001,2]
[322059295,1712734382911,174.856418,0.00020927,2]
[322059297,1712734496991,319.451806,0.00020994,2]
[322059298,1712734499482,393.5413219,0.00020994,2]
[322059300,1712734515100,10455.90216901,0.0002,2]
[322059301,1712734553500,250.0,0.00020994,2]
[322059303,1712734690088,1192.2646521,0.00020951,2]
[322059308,1712734853166,341.2024969,0.00020676,2]
[322059309,1712734958283,159.725903,0.00020171,2]
[322059310,1712734986249,24900.0,0.00020162,2]
[322059311,1712734998926,1941.7278895,0.00020143,2]
[322059312,1712735146066,6402.84735167,0.00020143,2]
[322059315,1712735254562,878.83972768,0.00020935,2]
[322059339,1712735364148,6383.63315842,0.00020806,2]
[322059340,1712735393960,620.67077649,0.000189,2]
[322059396,1712735432342,-364.74168,0.00021008,2]
[322059399,1712735432352,-820.33906884,0.00021008,2]
[322059404,1712735432407,-48.40956476,0.00021008,2]
[322059405,1712735432416,-1931.15529922,0.00021008,2]
[322059406,1712735432425,-887.0189653,0.00021009,2]
[322059407,1712735432435,-188.68019824,0.00021009,2]
[322059409,1712735432445,-1307.84743807,0.00021009,2]
[322059411,1712735432454,-283.42171032,0.00021009,2]
[322059413,1712735432463,-240.74685142,0.0002101,2]
[322059415,1712735432473,-3736.78008316,0.0002101,2]
[322059417,1712735432482,-155.53591284,0.0002101,2]
[322059419,1712735432491,-154.9690062,0.00021011,2]
[322059421,1712735432500,-300.0,0.00021011,2]
[322059423,1712735432509,-300.0,0.00021011,2]
[322059425,1712735432519,-5784.90920352,0.00021012,2]
[322059427,1712735432528,-562.9343756,0.00021012,2]
[322059429,1712735432537,-282.81584181,0.00021012,2]
[322059431,1712735432546,-154.9690062,0.00021012,2]
[322059433,1712735432555,-5760.10241824,0.00021012,2]
[322059436,1712735432568,-2660.26713484,0.00021012,2]
[322059438,1712735432581,-3301.971356,0.00021012,2]
[322059560,1712735438429,-816.00385354,0.00021011,2]
[322059562,1712735438441,-237.80465109,0.00021011,2]
[322059566,1712735438485,-1628.61240623,0.00021011,2]
[322059567,1712735438495,-47274.13744839,0.00021012,2]
[322059568,1712735438504,-225.55190173,0.00021013,2]
[322059569,1712735438514,-1087.50404334,0.00021015,2]
[322059570,1712735438522,-2295.43372737,0.00021015,2]
[322059571,1712735438532,-155.22489452,0.00021015,2]
[322059572,1712735438541,-211.34462556,0.00021015,2]
[322059573,1712735438550,-223.18823,0.00021016,2]
[322059574,1712735438560,-214.29943679,0.00021016,2]
[322059575,1712735438569,-500.0,0.00021016,2]
[322059576,1712735438580,-475.05743429,0.00021016,2]
[322059577,1712735438589,-22751.29699705,0.00021017,2]
[322059578,1712735438598,-936.36329074,0.00021023,2]
[322059579,1712735438607,-300.0,0.00021025,2]
[322059580,1712735438616,-156.6143744,0.00021057,2]
[322059581,1712735438625,-2599.35817755,0.00021173,2]
[322059582,1712735438635,-500.0,0.00021917,2]
[322059583,1712735438644,-641.10681484,0.00021917,2]
[322059584,1712735438653,-501.94460501,0.00021917,2]
[322059585,1712735438662,-500.0,0.00021917,2]
[322059586,1712735438672,-341.57944337,0.00021917,2]
[322059587,1712735438683,-500.0,0.00021917,2]
[322059588,1712735438694,-506.7451759,0.00021917,2]
[322059589,1712735438704,-500.0,0.00021917,2]
[322059590,1712735438713,-500.0,0.00021917,2]
[322059591,1712735438722,-158.55609735,0.00022,2]
[322059592,1712735438731,-1307.04885162,0.00022172,2]
[322059593,1712735438740,-1232.25,0.00022182,2]
[322059594,1712735438749,-687.65,0.00022182,2]
[322059595,1712735438758,-500.0,0.00022182,2]
[322059596,1712735438768,-500.0,0.00022182,2]
[322059597,1712735438777,-426.01192026,0.00022182,2]
[322059598,1712735438787,-500.0,0.00022182,2]
[322059599,1712735438796,-1419.92,0.00022182,2]
[322059600,1712735438805,-500.0,0.00022182,2]
[322059601,1712735438815,-653.71,0.00022182,2]
[322059602,1712735438824,-500.0,0.00022182,2]
[322059603,1712735438833,-500.0,0.00022182,2]
[322059604,1712735438842,-505.73921587,0.00022183,2]
[322059605,1712735438851,-501.32254633,0.00022183,2]
[322059606,1712735438861,-500.0,0.00022183,2]
[322059607,1712735438870,-500.0,0.00022183,2]
[322059608,1712735438879,-500.0,0.00022183,2]
[322059609,1712735438888,-224.60513855,0.00022183,2]
[322059610,1712735438897,-500.0,0.00022183,2]
[322059611,1712735438906,-500.0,0.00022183,2]
[322059612,1712735438915,-500.0,0.00022183,2]
[322059613,1712735438924,-500.0,0.00022191,2]
[322059614,1712735438933,-500.0,0.00022191,2]
[322059615,1712735438945,-500.0,0.00022191,2]
[322059616,1712735438954,-500.0,0.00022272,2]
[322059617,1712735438963,-500.0,0.00022272,2]
[322059618,1712735438972,-1371.92,0.00022272,2]
[322059619,1712735438981,-1232.25,0.00022456,2]
[322059620,1712735438990,-687.65,0.00022456,2]
[322059621,1712735438999,-500.0,0.00022456,2]
[322059622,1712735439008,-500.0,0.00022456,2]
[322059623,1712735439017,-500.0,0.00022456,2]
[322059624,1712735439026,-1419.92,0.00022456,2]
[322059625,1712735439035,-546.97200429,0.00022456,2]
[322059626,1712735439044,-653.71,0.00022456,2]
[322059627,1712735439053,-500.0,0.00022456,2]
[322059628,1712735439062,-500.0,0.00022456,2]
[322059629,1712735439071,-500.0,0.00022457,2]
[322059630,1712735439080,-500.0,0.00022457,2]
[322059631,1712735439089,-500.0,0.00022457,2]
[322059632,1712735439098,-500.0,0.00022465,2]
[322059633,1712735439219,-500.0,0.00022465,2]
[322059634,1712735439230,-500.0,0.00022465,2]
[322059635,1712735439239,-500.0,0.00022546,2]
[322059636,1712735439248,-500.0,0.00022546,2]
[322059637,1712735439257,-1371.92,0.00022546,2]
[322059638,1712735439267,-1232.25,0.0002273,2]
[322059639,1712735439276,-687.65,0.0002273,2]
[322059640,1712735439286,-500.0,0.0002273,2]
[322059641,1712735439295,-500.0,0.0002273,2]
[322059642,1712735439305,-500.0,0.0002273,2]
[322059643,1712735439314,-1419.92,0.0002273,2]
[322059644,1712735439324,-653.71,0.0002273,2]
[322059645,1712735439333,-500.0,0.0002273,2]
[322059646,1712735439343,-500.0,0.0002273,2]
[322059647,1712735439352,-500.0,0.00022731,2]
[322059648,1712735439361,-500.0,0.00022731,2]
[322059649,1712735439370,-500.0,0.00022739,2]
[322059650,1712735439379,-500.0,0.00022739,2]
[322059651,1712735439389,-500.0,0.00022739,2]
[322059652,1712735439398,-500.0,0.0002282,2]
[322059653,1712735439407,-500.0,0.0002282,2]
[322059654,1712735439416,-1371.92,0.0002282,2]
[322059655,1712735439426,-420.0,0.00022855,2]
[322059656,1712735439436,-878.83972763,0.0002293,2]
[322059657,1712735439445,-29150.42773612,0.00023004,2]
[322059658,1712735439454,-1232.25,0.00023004,2]
[322059659,1712735439463,-687.65,0.00023004,2]
[322059660,1712735439472,-500.0,0.00023004,2]
[322059661,1712735439482,-500.0,0.00023004,2]
[322059662,1712735439492,-500.0,0.00023004,2]
[322059663,1712735439501,-1419.92,0.00023004,2]
[322059664,1712735439511,-653.71,0.00023004,2]
[322059665,1712735439521,-500.0,0.00023004,2]
[322059666,1712735439530,-500.0,0.00023004,2]
[322059667,1712735439539,-500.0,0.00023005,2]
[322059668,1712735439548,-500.0,0.00023005,2]
[322059669,1712735439558,-500.0,0.00023013,2]
[322059670,1712735439567,-391.14,0.00023013,2]
[322059671,1712735439577,-500.0,0.00023013,2]
[322059672,1712735439586,-156.6143744,0.0002302,2]
[322059673,1712735439596,-500.0,0.00023094,2]
[322059674,1712735439606,-500.0,0.00023094,2]
[322059675,1712735439615,-1371.92,0.00023094,2]
[322059676,1712735439625,-420.0,0.00023112,2]
[322059677,1712735439634,-1232.25,0.00023278,2]
[322059678,1712735439644,-687.65,0.00023278,2]
[322059679,1712735439653,-500.0,0.00023278,2]
[322059680,1712735439664,-500.0,0.00023278,2]
[322059681,1712735439676,-500.0,0.00023278,2]
[322059682,1712735439688,-1419.92,0.00023278,2]
[322059683,1712735439698,-653.71,0.00023278,2]
[322059684,1712735439707,-500.0,0.00023278,2]
[322059685,1712735439716,-500.0,0.00023278,2]
[322059686,1712735439726,-500.0,0.00023279,2]
[322059687,1712735439736,-500.0,0.00023279,2]
[322059688,1712735439745,-500.0,0.00023287,2]
[322059689,1712735439754,-500.0,0.00023287,2]
[322059690,1712735439764,-500.0,0.00023368,2]
[322059691,1712735439774,-500.0,0.00023368,2]
[322059692,1712735439783,-1371.92,0.00023368,2]
[322059693,1712735439792,-1307.04885161,0.00023479,2]
[322059694,1712735439801,-1232.25,0.00023552,2]
[322059695,1712735439811,-687.65,0.00023552,2]
[322059696,1712735439820,-529.6491511,0.00023552,2]
[322059697,1712735439829,-500.0,0.00023552,2]
[322059699,1712735439838,-500.0,0.00023552,2]
[322059700,1712735439847,-1419.92,0.00023552,2]
[322059701,1712735439857,-653.71,0.00023552,2]
[322059702,1712735439866,-500.0,0.00023552,2]
[322059703,1712735439876,-500.0,0.00023552,2]
[322059704,1712735439886,-500.0,0.00023553,2]
[322059705,1712735439895,-500.0,0.00023553,2]
[322059706,1712735439904,-500.0,0.00023561,2]
[322059707,1712735439913,-500.0,0.00023561,2]
[322059708,1712735439923,-500.0,0.00023642,2]
[322059709,1712735439933,-500.0,0.00023642,2]
[322059710,1712735439944,-1371.92,0.00023642,2]
[322059711,1712735439954,-2000.0,0.00023726,2]
[322059712,1712735439964,-1232.25,0.00023826,2]
[322059713,1712735439973,-687.65,0.00023826,2]
[322059714,1712735439983,-500.0,0.00023826,2]
[322059715,1712735439993,-500.0,0.00023826,2]
[322059716,1712735440002,-1419.92,0.00023826,2]
[322059717,1712735440011,-653.71,0.00023826,2]
[322059718,1712735440021,-500.0,0.00023826,2]
[322059719,1712735440030,-500.0,0.00023826,2]
[322059720,1712735440040,-500.0,0.00023827,2]
[322059721,1712735440049,-500.0,0.00023827,2]
[322059722,1712735440059,-500.0,0.00023835,2]
[322059723,1712735440069,-500.0,0.00023835,2]
[322059724,1712735440078,-620.67077649,0.000239,2]
[322059725,1712735440087,-500.0,0.00023916,2]
[322059726,1712735440097,-500.0,0.00023916,2]
[322059727,1712735440106,-1371.92,0.00023916,2]
[322059728,1712735440115,-8139.51448875,0.00024,2]
[322059729,1712735440124,-1232.25,0.000241,2]
[322059730,1712735440134,-687.65,0.000241,2]
[322059731,1712735440143,-500.0,0.000241,2]
[322059732,1712735440153,-500.0,0.000241,2]
[322059733,1712735440162,-1419.92,0.000241,2]
[322059734,1712735440171,-653.71,0.000241,2]
[322059735,1712735440181,-500.0,0.000241,2]
[322059736,1712735440191,-500.0,0.000241,2]
[322059737,1712735440200,-348.55910783,0.00024101,2]
[322059738,1712735440209,-500.0,0.00024101,2]
[322059739,1712735440218,-500.0,0.00024109,2]
[322059741,1712735440227,-612.48,0.00024109,2]
[322059743,1712735440237,-500.0,0.0002419,2]
[322059744,1712735440246,-500.0,0.0002419,2]
[322059745,1712735440255,-1371.92,0.0002419,2]
[322059746,1712735440264,-221.609,0.00024359,2]
[322059747,1712735440274,-1232.25,0.00024374,2]
[322059748,1712735440283,-687.65,0.00024374,2]
[322059749,1712735440292,-500.0,0.00024374,2]
[322059750,1712735440301,-500.0,0.00024374,2]
[322059751,1712735440310,-1419.92,0.00024374,2]
[322059752,1712735440322,-653.71,0.00024374,2]
[322059754,1712735440331,-500.0,0.00024374,2]
[322059756,1712735440340,-500.0,0.00024374,2]
[322059758,1712735440349,-500.0,0.00024375,2]
[322059760,1712735440359,-500.0,0.00024383,2]
[322059762,1712735440368,-500.0,0.00024464,2]
[322059764,1712735440377,-500.0,0.00024464,2]
[322059766,1712735440387,-1371.92,0.00024464,2]
[322059768,1712735440396,-1232.25,0.00024648,2]
[322059770,1712735440405,-687.65,0.00024648,2]
[322059772,1712735440414,-500.0,0.00024648,2]
[322059774,1712735440424,-500.0,0.00024648,2]
[322059776,1712735440433,-1419.92,0.00024648,2]
[322059777,1712735440443,-653.71,0.00024648,2]